bitfinex/quotes_SOLUSD_20250907
["timestamp","ask_amount","ask_price","bid_price","bid_amount"]
[1757246907004,21.23018207,203.67,203.66,0.03]
[1757246907184,21.23018207,203.67,203.66,37.41]
[1757246907589,13.59559401,203.66,203.65,0.03]
[1757246908006,14.26559401,203.66,203.65,0.03]
[1757246908796,16.23047182,203.66,203.65,37.41]
[1757246909312,21.14061617,203.66,203.65,37.41]
[1757246911795,21.14061617,203.66,203.65,0.03]
[1757246911994,21.14061617,203.66,203.65,37.41]
[1757246915098,21.14061617,203.66,203.65,0.03]
[1757246915327,21.14061617,203.66,203.65,37.41]
[1757246915905,21.14061617,203.66,203.64,0.03]
[1757246916106,20.47061617,203.66,203.64,0.7]
[1757246916416,21.14061617,203.66,203.64,0.03]
[1757246916795,19.17573836,203.66,203.64,0.03]
[1757246916997,24.54457736,203.65,203.64,0.03]
[1757246917197,24.54457736,203.65,203.64,37.41]
[1757246917500,29.45496282,203.65,203.64,37.41]
[1757246922305,29.45496282,203.65,203.64,0.03]
[1757246922503,29.45496282,203.65,203.64,37.41]
[1757246922723,29.45496282,203.65,203.64,0.03]
[1757246922918,29.45496282,203.65,203.64,37.41]
[1757246923119,29.45496282,203.65,203.64,0.03]
[1757246923610,29.45496282,203.65,203.64,37.41]
[1757246924000,29.45496282,203.65,203.64,38.08]
[1757246924807,29.45496282,203.65,203.64,0.03]
[1757246925003,29.45496282,203.65,203.64,38.08]
[1757246925418,29.45496282,203.65,203.64,37.41]
[1757246925610,29.45496282,203.65,203.64,0.7]
[1757246925808,29.45496282,203.65,203.64,37.41]
[1757246926420,29.45496282,203.65,203.64,0.03]
[1757246926621,29.45496282,203.65,203.64,37.41]
[1757246938640,29.51496282,203.65,203.64,37.41]
[1757246940710,11.00898335,203.65,203.64,38.11]
[1757246940924,0.06,203.65,203.64,38.11]
[1757246949639,0.06,203.65,203.64,38.09]
[1757246950840,0.06,203.65,203.64,0.73]
[1757246951042,0.06,203.65,203.64,38.09]
[1757246952639,0.06,203.65,203.64,0.03]
[1757246952825,0.06,203.65,203.64,37.39]
[1757246953531,14.79441222,203.65,203.64,38.09]
[1757246959160,19.70479768,203.65,203.64,38.09]
[1757246959555,0.06,203.65,203.64,38.09]
[1757246959939,0.06,203.65,203.64,0.73]
[1757246960141,0.06,203.65,203.64,38.09]
[1757246961757,0.06,203.65,203.64,0.03]
[1757246961963,0.06,203.65,203.64,37.39]
[1757246962268,2.05439534,203.65,203.64,37.39]
[1757246963539,2.05439534,203.65,203.64,44.68253202]
[1757246963744,6.9647808,203.65,203.64,44.68253202]
[1757246972281,7.6447808,203.65,203.64,44.68253202]
[1757246972484,6.9647808,203.65,203.64,44.68253202]
[1757246984484,6.9647808,203.65,203.64,7.32253202]
[1757246984798,6.9647808,203.65,203.64,44.68253202]
[1757246986898,7.6447808,203.65,203.64,44.68253202]
[1757246987097,6.9647808,203.65,203.64,44.68253202]
[1757246990906,6.9647808,203.65,203.64,7.32253202]
[1757246991085,6.9647808,203.65,203.64,44.68253202]
[1757246996707,6.9647808,203.65,203.64,45.38253202]
[1757246997600,2.05439534,203.65,203.64,45.38253202]
[1757246999902,2.05439534,203.65,203.64,8.02253202]
[1757247000214,2.05439534,203.65,203.64,45.38253202]
[1757247000609,0.06,203.65,203.64,45.38253202]
[1757247001007,0.06,203.65,203.64,47.34673443]
[1757247002415,0.06,203.65,203.64,52.25736102]
[1757247003005,0.06,203.65,203.64,47.34673443]
[1757247005113,0.06,203.65,203.64,62.07673443]
[1757247005320,0.06,203.65,203.64,47.34673443]
[1757247010303,0.06,203.65,203.64,9.98673443]
[1757247010524,0.06,203.65,203.64,47.32673443]
[1757247012022,0.06,203.65,203.64,9.98673443]
[1757247012317,0.06,203.65,203.64,47.32673443]
[1757247017326,0.06,203.65,203.64,9.28673443]
[1757247017630,0.06,203.65,203.64,46.62673443]
[1757247018016,0.06,203.65,203.64,47.32673443]
[1757247018722,0.06,203.65,203.64,9.98673443]
[1757247018926,0.06,203.65,203.64,47.32673443]
[1757247019930,0.06,203.65,203.64,46.62673443]
[1757247020437,0.78,203.65,203.64,46.62673443]
[1757247020620,0.78,203.65,203.64,7.32253202]
[1757247020822,0.78,203.65,203.64,44.66253202]
[1757247023535,0.06,203.65,203.64,44.66253202]
[1757247023832,0.06,203.65,203.64,45.81359467]
[1757247025816,0.06,203.65,203.64,7.81359467]
[1757247026133,0.78,203.65,203.64,44.66253202]
[1757247026339,2.74439534,203.65,203.64,7.32253202]
[1757247026518,2.74439534,203.65,203.64,44.66253202]
[1757247032840,2.74439534,203.65,203.64,7.32253202]
[1757247033024,2.74439534,203.65,203.64,44.66253202]
[1757247033945,2.74439534,203.65,203.64,7.32253202]
[1757247034244,7.6547808,203.65,203.64,44.66253202]
[1757247035431,7.6547808,203.65,203.64,7.32253202]
[1757247035645,7.6547808,203.65,203.64,44.66253202]
[1757247038654,7.6547808,203.65,203.64,7.32253202]
[1757247038854,7.6547808,203.65,203.64,44.66253202]
[1757247041462,7.6547808,203.65,203.64,7.32253202]
[1757247041630,7.6547808,203.65,203.64,44.66253202]
[1757247043652,2.02439534,203.65,203.64,44.66253202]
[1757247044855,2.74439534,203.65,203.64,44.66253202]
[1757247045368,5.69038546,203.65,203.64,44.66253202]
[1757247046560,4.97038546,203.65,203.64,44.66253202]
[1757247046857,5.69038546,203.65,203.64,44.66253202]
[1757247048364,4.97038546,203.65,203.64,44.66253202]
[1757247049663,5.64038546,203.65,203.64,44.66253202]
[1757247051545,4.97038546,203.65,203.64,44.66253202]
[1757247052966,0.06,203.65,203.64,44.66253202]
[1757247053562,5.09017117,203.65,203.64,44.66253202]
[1757247053760,0.06,203.65,203.64,44.66253202]
[1757247056052,0.73,203.65,203.64,44.66253202]
[1757247056246,5.64038546,203.65,203.64,44.66253202]
[1757247056644,5.64038546,203.65,203.64,7.32253202]
[1757247056945,11.34052981,203.65,203.64,44.66253202]
[1757247062255,11.34052981,203.65,203.64,7.32253202]
[1757247062455,11.34052981,203.65,203.64,44.66253202]
[1757247064247,24.93612382,203.65,203.64,44.66253202]
[1757247065164,24.93612382,203.65,203.64,37.37]
[1757247068657,24.93612382,203.65,203.64,37.53]
[1757247069158,24.93612382,203.65,203.61,0.03]
[1757247069355,24.93612382,203.65,203.58,0.7]
[1757247069555,19.23597947,203.65,203.58,0.7]
[1757247070457,19.23597947,203.65,203.59,37.5]
[1757247070458,4.91086775,203.63,203.59,37.5]
[1757247070659,0.67,203.62,203.59,37.5]
[1757247071167,14.73730749,203.61,203.59,37.5]
[1757247071683,15.40730749,203.61,203.59,37.5]
[1757247072184,0.67,203.61,203.59,37.5]
[1757247072560,14.73730749,203.6,203.59,38.2]
[1757247072760,14.73730749,203.6,203.59,37.5]
[1757247073278,15.40730749,203.6,203.59,37.5]
[1757247074674,20.31889884,203.6,203.59,37.5]
[1757247077383,13.59559401,203.59,203.56,37.52]
[1757247077559,0.67,203.58,203.56,37.52]
[1757247077760,0.67,203.57,203.56,37.52]
[1757247078464,29.00869547,203.57,203.56,37.52]
[1757247078666,33.92101064,203.57,203.56,37.52]
[1757247083475,33.92101064,203.57,203.56,37.54]
[1757247084592,14.74310146,203.57,203.56,38.22]
[1757247085476,19.65541663,203.57,203.56,38.22]
[1757247086377,19.65541663,203.57,203.51,7.3852043]
[1757247086789,4.91231517,203.57,203.51,7.3852043]
[1757247086986,14.74092819,203.56,203.51,7.3852043]
[1757247087489,14.74092819,203.56,203.55,58.774]
[1757247088069,0.06,203.65,203.55,58.774]
[1757247088268,14.73803149,203.6,203.56,0.68]
[1757247088470,14.73803149,203.6,203.57,37.58]
[1757247088773,13.59559401,203.64,203.58,0.68]
[1757247088968,0.67,203.64,203.59,37.58]
[1757247089173,19.64902573,203.63,203.6,0.68]
[1757247089386,19.64902573,203.63,203.61,37.58]
[1757247089584,4.91099424,203.63,203.61,37.58]
[1757247089781,14.73803149,203.62,203.61,37.58]
[1757247092181,19.64914041,203.62,203.61,37.58]
[1757247094891,14.73803149,203.62,203.61,37.58]
[1757247095090,14.73803149,203.62,203.61,38.26]
[1757247096095,14.73803149,203.62,203.61,37.58]
[1757247097291,14.73803149,203.62,203.61,38.26]
[1757247097490,4.91068528,203.64,203.61,38.26]
[1757247097669,14.73585972,203.63,203.61,38.26]
[1757247098386,14.73585972,203.63,203.61,37.58]
[1757247102598,14.73585972,203.63,203.6,0.68]
[1757247102894,14.73585972,203.63,203.61,37.52]
[1757247103275,14.73585972,203.63,203.6,0.68]
[1757247103482,14.73585972,203.63,203.61,37.52]
[1757247103683,15.40585972,203.63,203.61,37.52]
[1757247103998,15.40585972,203.63,203.62,37.52]
[1757247105197,14.73585972,203.63,203.62,38.2]
[1757247105381,0.06,203.65,203.62,38.2]
[1757247105587,0.06,203.65,203.63,0.68]
[1757247106393,0.06,203.65,203.63,1.17108677]
[1757247106799,0.06,203.65,203.64,0.68]
[1757247108409,0.06,203.65,203.64,38.22]
[1757247108595,0.06,203.65,203.64,37.54]
[1757247113388,0.06,203.65,203.64,37.52]
[1757247115193,0.06,203.65,203.63,0.68]
[1757247115393,0.06,203.65,203.64,37.52]
[1757247117112,0.06,203.65,203.63,0.68]
[1757247117315,0.06,203.65,203.64,37.5]
[1757247117709,0.06,203.65,203.63,0.68]
[1757247118302,0.72,203.65,203.62,26.0]
[1757247118495,0.72,203.65,203.63,37.5]
[1757247118694,0.72,203.65,203.61,26.0]
[1757247118911,0.72,203.65,203.62,38.21]
[1757247119115,0.06,203.65,203.62,38.21]
[1757247119416,0.06,203.65,203.63,0.71]
[1757247123409,0.06,203.65,203.64,0.49106265]
[1757247123820,0.06,203.65,203.64,1.20106265]
[1757247124322,0.06,203.65,203.64,37.99106265]
[1757247124924,0.06,203.65,203.64,38.70106265]
[1757247126514,0.06,203.65,203.64,37.99106265]
[1757247126937,0.06,203.65,203.64,38.70106265]
[1757247127104,0.06,203.65,203.62,1.20111089]
[1757247127310,0.06,203.65,203.64,37.52]
[1757247131329,0.06,203.65,203.64,38.23]
[1757247133641,0.06,203.65,203.64,37.52]
[1757247136320,0.72,203.65,203.64,37.52]
[1757247137136,0.06,203.65,203.64,37.52]
[1757247137639,0.06,203.65,203.64,38.72106265]
[1757247137820,0.06,203.65,203.64,86.39598811]
[1757247142538,0.06,203.65,203.64,60.39598811]
[1757247145429,0.06,203.65,203.64,60.33598811]
[1757247150554,0.06,203.65,203.64,73.93158212]
[1757247151049,0.06,203.65,203.64,77.78496085]
[1757247151831,0.06,203.65,203.64,73.93158212]
[1757247156039,0.06,203.65,203.64,80.37891168]
[1757247164959,0.06,203.65,203.64,79.66891168]
[1757247168767,1e-08,203.65,203.64,188.92891168]
[1757247168976,1e-08,203.65,203.64,182.69051947]
[1757247169154,1e-08,203.66,203.65,28.33559401]
[1757247169350,1e-08,203.66,203.65,35.50292357]
[1757247169571,1e-08,203.66,203.65,42.88578471]
[1757247170069,1e-08,203.66,203.65,49.75940853]
[1757247170271,1e-08,203.66,203.65,50.25044707]
[1757247172178,1e-08,203.66,203.65,130.05044707]
[1757247172356,1e-08,203.66,203.65,129.55940853]
[1757247175472,1e-08,203.66,203.65,164.87940853]
[1757247176150,1e-08,203.66,203.65,202.27940853]
[1757247176766,1e-08,203.66,203.65,164.87940853]
[1757247176974,1e-08,203.66,203.65,202.31940853]
[1757247177550,1e-08,203.66,203.65,164.87940853]
[1757247177763,1e-08,203.66,203.65,202.31940853]
[1757247178770,1e-08,203.66,203.65,231.77940853]
[1757247180468,1e-08,203.66,203.65,188.70902307]
[1757247180676,0.69000001,203.66,203.65,196.68902307]
[1757247180974,0.69000001,203.66,203.65,201.59940853]
[1757247183976,0.69000001,203.66,203.65,121.79940853]
[1757247186265,1e-08,203.66,203.65,122.51940853]
[1757247186664,1e-08,203.66,203.65,121.79940853]
[1757247188885,1e-08,203.66,203.65,122.51940853]
[1757247189766,1e-08,203.66,203.65,121.79940853]
[1757247190093,1e-08,203.66,203.65,201.59940853]
[1757247194489,1e-08,203.66,203.65,201.57940853]
[1757247194874,1e-08,203.66,203.65,202.29940853]
[1757247195274,1e-08,203.66,203.65,201.57940853]
[1757247196689,1e-08,203.66,203.65,202.29940853]
[1757247200194,1e-08,203.66,203.65,202.32940853]
[1757247200878,1e-08,203.66,203.65,201.60940853]
[1757247202194,1e-08,203.66,203.65,231.06940853]
[1757247204690,1e-08,203.66,203.65,193.64940853]
[1757247204894,1e-08,203.66,203.65,231.04940853]
[1757247208796,0.65000001,203.66,203.65,193.64940853]
[1757247208979,0.65000001,203.66,203.65,231.04940853]
[1757247210507,0.65000001,203.66,203.65,201.58940853]
[1757247213701,0.65000001,203.66,203.65,121.78940853]
[1757247219714,0.65000001,203.66,203.65,201.58940853]
[1757247222887,0.65000001,203.66,203.65,231.04940853]
[1757247223087,0.65000001,203.66,203.65,201.58940853]
[1757247223810,0.65000001,203.66,203.65,164.18940853]
[1757247223992,0.65000001,203.66,203.65,201.58940853]
[1757247225610,0.65000001,203.66,203.65,121.78940853]
[1757247231310,0.53352749,203.73,203.68,30.90966221]
[1757247231497,0.53352749,203.73,203.72,26.0]
[1757247231702,0.53352749,203.73,203.72,37.38]
[1757247233216,1.24352749,203.73,203.72,37.38]
[1757247237718,1.30352749,203.73,203.72,37.38]
[1757247241716,1.30352749,203.73,203.7,26.0]
[1757247242018,0.71,203.72,203.71,37.38]
[1757247253831,0.06,203.73,203.71,38.05]
[1757247254018,0.06,203.73,203.72,0.67]
[1757247258430,0.06,203.73,203.72,5.57869821]
[1757247259836,0.06,203.73,203.72,4.90869821]
[1757247260045,0.06,203.73,203.71,44.98219562]
[1757247261241,0.06,203.73,203.71,44.28219562]
[1757247261428,0.7,203.72,203.71,44.28219562]
[1757247261628,0.06,203.73,203.71,44.28219562]
[1757247262034,0.06,203.73,203.71,44.98219562]
[1757247262443,0.06,203.73,203.71,44.28219562]
[1757247262640,0.76,203.73,203.71,44.28219562]
[1757247263128,0.06,203.73,203.71,44.98219562]
[1757247263844,0.06,203.73,203.71,44.28219562]
[1757247264049,0.76,203.73,203.71,44.28219562]
[1757247264235,0.06,203.73,203.71,44.28219562]
[1757247264549,0.76,203.73,203.71,39.37333473]
[1757247265050,0.76,203.73,203.71,37.41]
[1757247266235,0.76,203.73,203.71,47.34578822]
[1757247267534,0.06,203.73,203.71,47.34578822]
[1757247267739,0.06,203.73,203.71,48.04578822]
[1757247269049,0.76,203.73,203.71,47.34578822]
[1757247269238,0.76,203.73,203.71,9.96578822]
[1757247269444,0.06,203.73,203.72,37.38]
[1757247269647,0.76,203.73,203.72,37.38]
[1757247270252,0.06,203.73,203.72,37.38]
[1757247271356,0.06,203.73,203.71,9.96578822]
[1757247271654,0.06,203.73,203.72,37.38]
[1757247273854,0.06,203.73,203.72,38.08]
[1757247274750,0.06,203.73,203.72,37.38]
[1757247285748,2.0234311,203.73,203.72,37.38]
[1757247285949,2.7234311,203.73,203.72,37.38]
[1757247286147,2.0234311,203.73,203.72,37.38]
[1757247286458,0.76,203.73,203.72,37.38]
[1757247288648,0.76,203.73,203.72,63.38]
[1757247289466,0.76,203.73,203.72,37.38]
[1757247289966,5.72802947,203.73,203.72,37.38]
[1757247291049,5.72802947,203.73,203.72,26.0]
[1757247291250,5.72802947,203.73,203.72,63.38]
[1757247291769,5.72802947,203.73,203.72,63.41]
[1757247292674,5.72802947,203.73,203.72,0.03]
[1757247292853,5.72802947,203.73,203.72,37.41]
[1757247293061,10.63648674,203.73,203.72,0.03]
[1757247293367,10.63648674,203.73,203.72,37.41]
[1757247293667,10.63648674,203.73,203.72,45.10696142]
[1757247301667,10.63648674,203.73,203.72,0.03]
[1757247301668,24.23208075,203.73,203.72,0.03]
[1757247301963,13.59559401,203.72,203.71,0.03]
[1757247302162,4.90869821,203.72,203.71,0.03]
[1757247302380,5.62869821,203.72,203.71,0.03]
[1757247302584,7.59319002,203.72,203.71,0.03]
[1757247303166,7.59319002,203.72,203.71,37.41]
[1757247308468,2.68449181,203.72,203.71,37.41]
[1757247309377,7.59319002,203.72,203.71,0.03]
[1757247309974,7.65319002,203.72,203.71,0.03]
[1757247318302,33.65319002,203.72,203.71,0.03]
[1757247319599,47.24878403,203.72,203.71,0.03]
[1757247329520,21.24878403,203.72,203.71,0.03]
[1757247330293,26.0,203.7,203.68,0.03]
[1757247330590,158.3,203.7,203.68,0.03]
[1757247330796,0.67,203.69,203.68,0.03]
[1757247330996,14.546441,203.69,203.68,0.03]
[1757247332117,28.14203501,203.69,203.68,0.03]
[1757247332309,18.50525622,203.68,203.67,1e-08]
[1757247332505,150.80525622,203.68,203.67,1e-08]
[1757247332713,151.47525622,203.68,203.67,1e-08]
[1757247333416,153.44023055,203.68,203.67,1e-08]
[1757247335513,39.59559401,203.66,203.65,1e-08]
[1757247336020,60.26559401,203.66,203.65,1e-08]
[1757247336324,62.23095453,203.66,203.65,1e-08]
[1757247336495,66.26476332,203.66,203.65,1e-08]
[1757247336922,71.17490767,203.66,203.65,1e-08]
[1757247337224,74.84129518,203.66,203.65,1e-08]
[1757247337518,67.14109888,203.66,203.65,1e-08]
[1757247338325,104.58109888,203.66,203.65,1e-08]
[1757247339000,107.142531,203.66,203.65,1e-08]
[1757247341121,110.80533457,203.66,203.65,1e-08]
[1757247343418,107.142531,203.66,203.65,1e-08]
[1757247343619,69.702531,203.66,203.65,1e-08]
[1757247343823,107.142531,203.66,203.65,1e-08]
[1757247344205,110.80276579,203.66,203.65,1e-08]
[1757247344404,107.142531,203.66,203.65,1e-08]
[1757247345219,69.702531,203.66,203.65,1e-08]
[1757247345516,107.142531,203.66,203.65,1e-08]
[1757247346916,107.162531,203.66,203.65,1e-08]
[1757247348028,69.702531,203.66,203.65,1e-08]
[1757247348225,107.162531,203.66,203.65,1e-08]
[1757247352833,69.702531,203.66,203.65,1e-08]
[1757247353012,69.032531,203.66,203.65,1e-08]
[1757247353214,107.172531,203.66,203.65,1e-08]
[1757247356918,13.59559401,203.65,203.64,1e-08]
[1757247357124,14.27559401,203.65,203.64,1e-08]
[1757247357537,16.24114768,203.65,203.64,1e-08]
[1757247358336,58.01153314,203.65,203.62,0.03]
[1757247358631,56.04597947,203.65,203.62,0.03]
[1757247359035,13.59559401,203.63,203.62,0.03]
[1757247359435,4.91086775,203.63,203.62,0.03]
[1757247359740,33.2481143,203.63,203.62,0.03]
[1757247359924,59.2481143,203.63,203.62,0.03]
[1757247360124,59.9281143,203.63,203.62,0.03]
[1757247360324,97.4681143,203.63,203.62,0.03]
[1757247360833,96.8281143,203.63,203.62,0.03]
[1757247362328,33.2481143,203.63,203.62,0.03]
[1757247362638,70.8281143,203.63,203.62,0.03]
[1757247365831,71.5081143,203.63,203.62,0.03]
[1757247369751,13.59559401,203.6,203.59,0.03]
[1757247370332,63.6,203.61,203.59,0.03]
[1757247370333,26.0,203.61,203.59,0.03]
[1757247370537,26.0,203.61,203.59,0.69]
[1757247370734,27.96574687,203.6,203.59,0.69]
[1757247371243,41.56134088,203.6,203.59,0.03]
[1757247371852,46.47293223,203.6,203.59,0.03]
[1757247377140,47.15293223,203.6,203.59,0.03]
[1757247378750,21.15293223,203.6,203.59,0.03]
[1757247386351,58.05293223,203.6,203.59,0.03]
[1757247386565,20.47293223,203.6,203.59,0.03]
[1757247390342,21.18293223,203.6,203.59,0.03]
[1757247391266,20.47293223,203.6,203.59,0.03]
[1757247391965,21.18293223,203.6,203.59,0.03]
[1757247392165,20.47293223,203.6,203.59,0.03]
[1757247392671,21.18293223,203.6,203.59,0.03]
[1757247396958,20.47293223,203.6,203.59,0.03]
[1757247397348,21.18293223,203.6,203.59,0.03]
[1757247399069,21.24293223,203.6,203.59,0.03]
[1757247413484,20.53293223,203.6,203.59,0.03]
[1757247414512,21.24293223,203.6,203.59,0.03]
[1757247418576,24.92352754,203.6,203.59,0.03]
[1757247421579,39.59559401,203.56,203.55,21.214]
[1757247422298,54.34086938,203.56,203.55,21.214]
[1757247427001,59.25342587,203.56,203.55,21.214]
[1757247427896,101.1215657,203.56,203.53,1e-08]
[1757247428104,13.59559401,203.54,203.53,1e-08]
[1757247428296,54.75373384,203.54,203.53,1e-08]
[1757247428497,55.46373384,203.54,203.53,1e-08]
[1757247428800,57.43015717,203.54,203.53,1e-08]
[1757247429008,62.34319637,203.54,203.53,1e-08]
[1757247429297,21.18505654,203.54,203.53,1e-08]
[1757247429686,47.18505654,203.54,203.53,1e-08]
[1757247432608,21.18505654,203.54,203.53,1e-08]
[1757247435819,20.47505654,203.54,203.53,1e-08]
[1757247438138,46.47505654,203.54,203.53,1e-08]
[1757247439048,20.47505654,203.54,203.53,0.69000001]
[1757247440043,20.47505654,203.54,203.53,1e-08]
[1757247440422,20.47505654,203.54,203.53,0.72000001]
[1757247444023,46.47505654,203.54,203.53,0.72000001]
[1757247444239,46.47505654,203.54,203.53,1e-08]
[1757247447452,47.19505654,203.54,203.53,1e-08]
[1757247447743,20.47505654,203.54,203.53,1e-08]
[1757247453137,21.19505654,203.54,203.53,1e-08]
[1757247453833,20.47505654,203.54,203.53,1e-08]
[1757247455958,21.19505654,203.54,203.53,1e-08]
[1757247456454,20.47505654,203.54,203.53,1e-08]
[1757247457742,20.53505654,203.54,203.53,1e-08]
[1757247461952,21.25505654,203.54,203.53,1e-08]
[1757247462566,61.77691152,203.54,203.46,1.96613336]
[1757247462740,13.59559401,203.52,203.44,0.72]
[1757247462934,0.72,203.51,203.44,0.72]
[1757247463373,13.59559401,203.49,203.44,0.72]
[1757247463543,14.31559401,203.49,203.44,0.72]
[1757247464060,14.74962512,203.48,203.44,0.72]
[1757247464459,4.91448791,203.48,203.45,0.72]
[1757247464760,5.63448791,203.48,203.43,0.72]
[1757247464968,5.63448791,203.48,203.44,0.72]
[1757247465144,14.74962512,203.47,203.44,0.72]
[1757247465461,5.63448791,203.48,203.44,0.72]
[1757247465842,4.91521258,203.45,203.44,0.72]
[1757247466960,4.914971,203.46,203.43,0.72]
[1757247467164,4.914971,203.46,203.44,38.18]
[1757247467375,4.914971,203.46,203.44,37.46]
[1757247467566,4.914971,203.46,203.45,0.72]
[1757247468668,4.91472944,203.47,203.45,0.72]
[1757247470363,4.91472944,203.47,203.44,38.14]
[1757247470768,4.91472944,203.47,203.45,0.68]
[1757247472069,4.91472944,203.47,203.44,37.46]
[1757247472271,4.91472944,203.47,203.44,38.14]
[1757247476369,19.66435455,203.47,203.44,38.14]
[1757247476870,19.66435455,203.47,203.44,38.17]
[1757247477074,4.91472944,203.47,203.44,38.17]
[1757247481082,4.91472944,203.47,203.45,0.68]
[1757247484275,14.74962511,203.48,203.46,0.68]
[1757247484965,4.97405621,203.5,203.47,0.68]
[1757247485475,5.65405621,203.5,203.47,0.68]
[1757247485672,5.65405621,203.5,203.46,0.68]
[1757247486279,0.06,203.5,203.46,0.68]
[1757247487074,0.74,203.5,203.46,0.68]
[1757247487458,0.68,203.49,203.46,0.68]
[1757247487662,0.68,203.49,203.45,0.68]
[1757247489578,5.59443344,203.49,203.45,0.68]
[1757247489779,5.59443344,203.49,203.46,37.46]
[1757247490883,5.59443344,203.49,203.46,38.14]
[1757247491576,4.91443344,203.49,203.46,38.14]
[1757247491967,4.91443344,203.49,203.47,37.46]
[1757247492162,4.97402114,203.5,203.47,38.14]
[1757247492982,0.74,203.5,203.47,37.46]
[1757247494066,0.74,203.5,203.48,37.46]
[1757247494267,0.74,203.5,203.49,37.46]
[1757247495875,5.65400491,203.5,203.49,37.46]
[1757247496286,4.97400491,203.5,203.49,37.46]
[1757247496686,5.65400491,203.5,203.49,37.46]
[1757247500284,4.97400491,203.5,203.49,37.46]
[1757247501890,0.06,203.5,203.49,38.17]
[1757247507997,0.06,203.5,203.49,37.46]
[1757247508501,0.06,203.5,203.49,38.17]
[1757247509578,0.06,203.5,203.49,37.46]
[1757247511096,0.06,203.5,203.49,38.17]
[1757247511595,0.06,203.5,203.49,64.17]
[1757247511991,0.06,203.5,203.49,40.13584347]
[1757247512897,0.06,203.5,203.49,45.05008987]
[1757247517005,0.06,203.5,203.49,7.59008987]
[1757247517203,0.06,203.5,203.49,45.03008987]
[1757247517706,0.06,203.5,203.49,37.44]
[1757247518910,0.06,203.5,203.49,37.47]
[1757247521510,0.06,203.5,203.49,0.03]
[1757247521719,0.06,203.5,203.49,37.47]
[1757247526298,0.06,203.5,203.49,44.35008987]
[1757247527318,0.06,203.5,203.49,1.99584347]
[1757247527523,0.06,203.5,203.49,39.43584347]
[1757247537228,0.06,203.5,203.49,1.99584347]
[1757247537413,0.06,203.5,203.49,39.43584347]
[1757247539511,0.06,203.5,203.49,1.99584347]
[1757247540016,0.06,203.5,203.49,39.43584347]
[1757247540518,0.73,203.5,203.49,39.43584347]
[1757247540700,0.73,203.5,203.49,1.99584347]
[1757247540905,0.73,203.5,203.49,39.43584347]
[1757247542325,0.73,203.5,203.49,1.99584347]
[1757247542514,0.73,203.5,203.49,37.47]
[1757247545824,0.73,203.5,203.49,0.03]
[1757247546127,0.73,203.5,203.49,37.47]
[1757247548025,0.73,203.5,203.49,16.43110481]
[1757247548327,0.73,203.5,203.49,53.87110481]
[1757247553731,0.73,203.5,203.49,16.43110481]
[1757247553918,0.73,203.5,203.49,53.87110481]
[1757247556737,0.73,203.5,203.49,16.43110481]
[1757247557034,0.73,203.5,203.49,53.87110481]
[1757247567444,5.64400491,203.5,203.49,16.43110481]
[1757247567650,5.64400491,203.5,203.49,53.87110481]
[1757247567830,20.38928027,203.5,203.49,53.87110481]
[1757247568345,33.98487428,203.5,203.49,53.87110481]
[1757247577354,33.98487428,203.5,203.49,53.87110481]
[1757247586034,33.31487428,203.5,203.49,53.87110481]
[1757247586857,34.03487428,203.5,203.49,53.87110481]
[1757247589066,33.31487428,203.5,203.49,53.87110481]
[1757247589647,33.31487428,203.5,203.49,16.43110481]
[1757247589969,34.03487428,203.5,203.49,53.87110481]
[1757247599072,34.03487428,203.5,203.49,53.85110481]
[1757247604062,34.03487428,203.5,203.49,16.43110481]